bitfinex-derivatives/quotes_BTCF0:USTF0_20240903
["timestamp","ask_amount","ask_price","bid_price","bid_amount"]
[1725372226998,0.00092866,58256.0,58255.0,0.870435]
[1725372227196,0.00092751,58256.0,58255.0,0.784602]
[1725372227392,0.0008,58256.0,58255.0,0.784602]
[1725372227594,0.00096968,58256.0,58255.0,0.784602]
[1725372227801,0.00096968,58256.0,58255.0,0.870435]
[1725372227996,0.00096968,58256.0,58255.0,0.784602]
[1725372228294,0.00096968,58256.0,58255.0,0.184602]
[1725372228295,0.0008,58256.0,58255.0,0.184602]
[1725372228492,0.0008,58256.0,58255.0,0.545402]
[1725372229094,0.086632,58256.0,58255.0,0.184602]
[1725372229494,0.086632,58256.0,58255.0,0.545402]
[1725372230191,0.0008,58256.0,58255.0,0.545402]
[1725372230702,0.0008,58256.0,58255.0,1.145402]
[1725372230893,0.0008,58256.0,58255.0,1.581235]
[1725372231113,0.00096968,58256.0,58255.0,1.581235]
[1725372231399,0.08228641,58275.0,58255.0,1.581235]
[1725372231400,0.06580097,58275.0,58272.0,0.11877288]
[1725372231697,0.08228641,58279.0,58274.0,0.11877288]
[1725372231698,0.085802,58276.0,58274.0,0.11877288]
[1725372231896,0.41580097,58277.0,58272.0,0.30157216]
[1725372232099,0.471614,58273.0,58272.0,0.30157216]
[1725372232302,0.45160797,58273.0,58272.0,0.30069216]
[1725372232495,0.085819,58265.0,58259.0,0.3608]
[1725372232690,0.96650312,58273.0,58264.0,0.11877288]
[1725372232691,0.085812,58270.0,58264.0,0.11877288]
[1725372232892,0.0658506,58272.0,58264.0,0.06724977]
[1725372233193,0.3608,58275.0,58259.0,0.3608]
[1725372233194,0.3,58269.0,58259.0,0.3608]
[1725372233394,0.085819,58265.0,58264.0,0.06724977]
[1725372233700,0.085819,58265.0,58259.0,0.9608]
[1725372233701,0.08582,58264.0,58261.0,0.06724977]
[1725372233891,0.3608,58267.0,58261.0,0.06724977]
[1725372234092,0.446616,58267.0,58261.0,0.06724977]
[1725372234398,0.5124666,58267.0,58262.0,0.3]
[1725372234599,0.446616,58267.0,58266.0,0.06724977]
[1725372234903,0.3608,58267.0,58266.0,0.06724977]
[1725372235398,0.4266506,58267.0,58266.0,0.06724977]
[1725372236102,0.38862483,58267.0,58259.0,0.3608]
[1725372236406,0.0008,58260.0,58259.0,0.9608]
[1725372236592,0.08332329,58260.0,58259.0,0.3608]
[1725372236793,0.02862557,58260.0,58259.0,0.42804977]
[1725372237395,0.12736926,58260.0,58259.0,0.42804977]
[1725372237595,0.21319526,58260.0,58259.0,0.3608]
[1725372237900,0.21363357,58260.0,58259.0,0.3608]
[1725372238203,0.62937157,58260.0,58259.0,0.3608]
[1725372238408,0.62937157,58260.0,58257.0,0.3]
[1725372238409,0.085829,58258.0,58257.0,0.3]
[1725372238628,0.16986082,58258.0,58257.0,0.3]
[1725372239204,0.02862557,58258.0,58257.0,0.66724977]
[1725372239699,0.0008,58258.0,58257.0,0.66724977]
[1725372240009,0.02862557,58258.0,58257.0,0.66724977]
[1725372240506,0.17166,58257.0,58256.0,0.0002574]
[1725372240701,0.84146064,58257.0,58256.0,0.0002574]
[1725372240906,0.75563064,58257.0,58256.0,0.0002174]
[1725372241605,0.78218478,58257.0,58256.0,0.0002174]
[1725372241903,0.75435921,58257.0,58256.0,0.0002174]
[1725372242314,0.75435921,58257.0,58256.0,6.303e-05]
[1725372242315,0.97184303,58257.0,58256.0,6.303e-05]
[1725372242512,1.63018921,58257.0,58256.0,6.303e-05]
[1725372242816,0.87435921,58257.0,58256.0,6.303e-05]
[1725372242996,0.84018921,58257.0,58256.0,6.303e-05]
[1725372243205,1.33525378,58257.0,58256.0,6.303e-05]
[1725372243608,1.31525378,58257.0,58256.0,6.303e-05]
[1725372243801,0.085832,58256.0,58255.0,0.00067395]
[1725372244106,1.07525778,58256.0,58255.0,0.00067395]
[1725372244307,1.62407076,58256.0,58255.0,0.00067395]
[1725372244510,1.52495778,58256.0,58255.0,0.00067395]
[1725372244705,2.22411349,58256.0,58255.0,0.00067395]
[1725372244909,2.12495778,58256.0,58255.0,0.00067395]
[1725372245705,2.12495778,58256.0,58250.0,0.0002574]
[1725372245706,0.257517,58251.0,58250.0,4e-07]
[1725372246007,0.257517,58251.0,58204.0,0.05104722]
[1725372246008,0.3608,58248.0,58204.0,0.05104722]
[1725372246202,0.085904,58207.0,58206.0,0.9608]
[1725372246421,0.085904,58207.0,58193.0,0.00088]
[1725372246422,0.085915,58200.0,58193.0,0.00088]
[1725372246614,0.446704,58207.0,58193.0,1.07728]
[1725372246615,0.3,58196.0,58193.0,1.07728]
[1725372246806,0.446704,58207.0,58195.0,0.3608]
[1725372246807,0.3608,58207.0,58195.0,0.3608]
[1725372247109,0.385909,58204.0,58195.0,0.96097253]
[1725372247311,0.3,58204.0,58195.0,0.60017253]
[1725372247514,0.36105769,58207.0,58197.0,0.3]
[1725372247813,0.36105769,58207.0,58201.0,0.3608]
[1725372248014,0.36105769,58207.0,58205.0,0.3]
[1725372248015,0.00025769,58207.0,58205.0,0.3]
[1725372248197,0.3,58221.0,58206.0,0.6608]
[1725372248399,0.3608,58222.0,58206.0,0.6608]
[1725372248400,0.3608,58215.0,58206.0,0.6608]
[1725372248605,0.3608,58215.0,58206.0,0.96054231]
[1725372248803,0.3,58217.0,58206.0,0.96054231]
[1725372249004,0.3,58217.0,58202.0,0.4521]
[1725372249005,0.3608,58207.0,58202.0,0.4521]
[1725372249206,0.00025769,58210.0,58202.0,0.75184231]
[1725372249606,0.3608,58212.0,58202.0,1.41264231]
[1725372249607,0.35965768,58212.0,58202.0,1.41264231]
[1725372250011,0.35965768,58212.0,58205.0,0.3608]
[1725372250313,0.65965768,58212.0,58202.0,0.75184231]
[1725372250916,0.3608,58207.0,58202.0,0.29974231]
[1725372251122,0.446704,58207.0,58199.0,0.00025769]
[1725372251305,0.446704,58207.0,58199.0,0.3]
[1725372251510,0.0008,58200.0,58199.0,0.3]
[1725372251705,0.0008,58200.0,58199.0,0.6]
[1725372251914,0.0008,58200.0,58199.0,0.9608]
[1725372252113,0.0008,58200.0,58199.0,0.3]
[1725372252511,0.0008,58200.0,58199.0,0.00025769]
[1725372253016,0.3,58224.0,58199.0,0.66105769]
[1725372253223,0.3608,58227.0,58213.0,0.3608]
[1725372253224,0.3,58214.0,58213.0,0.3608]
[1725372253728,0.3,58219.0,58213.0,0.3608]
[1725372253925,0.3,58215.0,58213.0,0.3608]
[1725372254119,0.385893,58215.0,58213.0,0.3608]
[1725372254320,0.87612,58214.0,58208.0,0.00025769]
[1725372254523,0.3,58209.0,58208.0,0.00025769]
[1725372254717,0.3,58218.0,58208.0,0.00025769]
[1725372254916,0.08589,58217.0,58208.0,0.00025769]
[1725372255115,0.00025769,58220.0,58209.0,0.3]
[1725372255415,0.00025769,58220.0,58211.0,0.3608]
[1725372255623,0.3,58217.0,58211.0,0.3608]
[1725372256017,0.3,58213.0,58208.0,0.00025769]
[1725372256211,0.6608,58217.0,58208.0,0.00025769]
[1725372256423,0.00025769,58220.0,58212.0,0.3608]
[1725372256424,0.08614269,58220.0,58212.0,0.3608]
[1725372256723,0.00025769,58220.0,58216.0,0.08589]
[1725372256925,0.00025769,58220.0,58219.0,0.085886]
[1725372257128,0.6608,58247.0,58219.0,0.3608]
[1725372257426,0.6608,58247.0,58226.0,0.085876]
[1725372257726,0.3,58246.0,58238.0,0.3608]
[1725372258018,0.085856,58240.0,58232.0,0.3]
[1725372258227,0.385856,58240.0,58230.0,0.00025769]
[1725372258419,0.3,58240.0,58230.0,0.00025769]
[1725372258622,0.00025769,58242.0,58230.0,0.00025769]
[1725372258824,0.06632833,58242.0,58235.0,0.3]
[1725372259026,0.06632833,58242.0,58241.0,0.085854]
[1725372259219,0.085831,58257.0,58241.0,0.085854]
[1725372259220,0.06607064,58253.0,58241.0,0.085854]
[1725372259522,0.085824,58262.0,58249.0,0.3608]
[1725372259523,0.3,58254.0,58249.0,0.3608]
[1725372259728,0.3,58254.0,58234.0,0.085864]
[1725372259729,0.3,58251.0,58238.0,0.3608]
[1725372259914,0.3,58251.0,58238.0,0.2608]
[1725372259915,0.0008,58239.0,58238.0,0.2608]
[1725372260118,0.0008,58239.0,58231.0,0.995468]
[1725372260119,0.0008,58239.0,58231.0,0.45378]
[1725372260317,0.085863,58235.0,58233.0,0.00025769]
[1725372260732,0.0008,58239.0,58233.0,0.00025769]
[1725372260733,0.085858,58239.0,58233.0,0.00025769]
[1725372261031,0.085864,58234.0,58233.0,0.00025769]
[1725372261330,0.3,58242.0,58233.0,0.00025769]
[1725372261523,0.085863,58235.0,58233.0,0.00025769]
[1725372263022,1.3085483,58234.0,58206.0,0.3608]
[1725372263223,0.0004,58208.0,58206.0,0.3608]
[1725372263417,0.0004,58207.0,58206.0,0.3608]
[1725372266620,0.086304,58207.0,58206.0,0.3608]
[1725372266828,0.086304,58207.0,58201.0,0.00891308]
[1725372266829,0.0004,58207.0,58201.0,0.00025769]
[1725372267136,0.0004,58207.0,58191.0,0.35]
[1725372267137,0.0004,58202.0,58191.0,0.35]
[1725372267525,0.0004,58202.0,58191.0,0.894228]
[1725372267721,0.0008,58192.0,58191.0,0.8083]
[1725372268026,0.0008,58192.0,58191.0,0.4583]
[1725372268219,0.085906,58207.0,58191.0,1.47412212]
[1725372268220,0.00025769,58197.0,58191.0,1.47412212]
[1725372268425,0.085902,58209.0,58196.0,0.79672]
[1725372268636,0.085904,58208.0,58205.0,0.3608]
[1725372269119,0.085894,58214.0,58205.0,0.3608]
[1725372269335,0.3608,58206.0,58197.0,0.4583]
[1725372269623,0.0655568,58212.0,58205.0,0.3608]
[1725372269827,0.1514528,58213.0,58204.0,0.00025769]
[1725372270130,0.0859,58210.0,58204.0,0.00025769]
[1725372270528,0.0655568,58214.0,58206.0,0.3608]
[1725372270726,0.06581449,58215.0,58206.0,0.3608]
[1725372270919,0.00025769,58215.0,58206.0,0.3608]
[1725372271632,0.00025769,58215.0,58207.0,0.35]
[1725372271930,0.00025769,58215.0,58204.0,0.00025769]
[1725372271931,0.00025769,58215.0,58211.0,0.3608]
[1725372272229,0.00025769,58215.0,58210.0,0.3608]
[1725372272417,0.00025769,58215.0,58214.0,0.446694]
[1725372272620,0.4973,58235.0,58214.0,0.446694]
[1725372272621,0.0655568,58230.0,58214.0,0.9608]
[1725372272823,0.0655568,58234.0,58225.0,0.3608]
[1725372273031,0.0655568,58233.0,58231.0,0.3608]
[1725372273333,0.0825883,58234.0,58231.0,0.23879829]
[1725372273727,0.0825883,58236.0,58232.0,0.35]
[1725372273929,0.0825883,58236.0,58231.0,0.23879829]
[1725372274122,0.0825883,58233.0,58227.0,0.00025769]
[1725372274327,0.3608,58236.0,58227.0,0.00025769]
[1725372274328,0.085873,58228.0,58227.0,0.00025769]
[1725372274530,0.1684613,58228.0,58227.0,0.00025769]
[1725372274732,0.11371753,58228.0,58227.0,0.00061769]
[1725372275431,0.02784453,58228.0,58227.0,0.00061769]
[1725372275630,0.0824569,58230.0,58227.0,0.00061769]
[1725372275831,0.0824569,58230.0,58229.0,0.0004]
[1725372276026,0.0824569,58231.0,58229.0,0.0004]
[1725372276231,0.08611504,58238.0,58230.0,0.8656]
[1725372276232,0.06598155,58232.0,58230.0,0.8656]
[1725372276538,0.0824569,58237.0,58231.0,0.35]
[1725372276539,0.06598155,58234.0,58231.0,0.35]
[1725372276732,0.085864,58234.0,58233.0,0.0004]
[1725372276931,0.0824569,58236.0,58233.0,0.0004]
[1725372277142,0.00025704,58238.0,58233.0,0.0004]
[1725372277143,0.0824569,58237.0,58235.0,0.3612]
[1725372277436,0.0824569,58237.0,58236.0,0.0004]
[1725372277621,0.00025704,58238.0,58236.0,0.0004]
[1725372277932,0.08271394,58238.0,58237.0,0.0004]
[1725372278327,0.00025704,58238.0,58237.0,0.0004]
[1725372278727,0.00025704,58238.0,58237.0,1.20138]
[1725372278922,0.00025704,58238.0,58237.0,1.47632]
[1725372279138,0.00025704,58238.0,58237.0,0.87632]
[1725372279528,0.00025704,58238.0,58237.0,0.3612]
[1725372279730,0.08611504,58238.0,58237.0,0.0004]
[1725372279931,0.44691504,58238.0,58237.0,0.0004]
[1725372280125,0.085869,58231.0,58227.0,0.00021769]
[1725372280326,0.085873,58228.0,58227.0,0.00021769]
[1725372280538,0.086273,58228.0,58227.0,0.00021769]
[1725372280743,0.085873,58228.0,58227.0,0.00021769]
[1725372280931,0.171746,58228.0,58227.0,0.00021769]
[1725372281139,0.085873,58228.0,58227.0,0.00021769]
[1725372281337,0.145873,58228.0,58227.0,0.00021769]
[1725372281634,0.085873,58228.0,58227.0,0.00021769]
[1725372282337,0.065908,58230.0,58227.0,0.35021769]
[1725372282541,0.426708,58229.0,58227.0,0.35021769]
[1725372282734,0.3608,58229.0,58227.0,0.35021769]
[1725372283039,0.0004,58231.0,58227.0,0.35021769]
[1725372283040,0.04984809,58231.0,58227.0,0.35021769]
[1725372283237,0.08627,58231.0,58228.0,0.3608]
[1725372283630,0.04944408,58229.0,58228.0,0.3608]
[1725372283828,0.0004,58231.0,58227.0,0.35021769]
[1725372284027,0.04984433,58228.0,58227.0,0.71101769]
[1725372284337,0.04984433,58228.0,58227.0,0.35021769]
[1725372284547,0.04984433,58228.0,58227.0,0.00021769]
[1725372284548,0.086273,58228.0,58227.0,0.00021769]
[1725372287139,0.1141197,58228.0,58227.0,0.00021769]
[1725372287336,0.0004,58228.0,58227.0,0.00021769]
[1725372287535,0.0004,58228.0,58227.0,0.43609269]
[1725372287739,0.04985938,58228.0,58227.0,0.43609269]
[1725372287939,0.0004,58228.0,58227.0,1.55133269]
[1725372288132,0.0004,58228.0,58227.0,2.01543269]
[1725372288329,0.00025704,58238.0,58227.0,1.41431769]
[1725372288535,0.00025704,58238.0,58237.0,0.3504]
[1725372288739,0.00025704,58238.0,58237.0,0.0004]
[1725372289036,0.00025704,58238.0,58237.0,1.91218]
[1725372289347,0.08241042,58252.0,58237.0,2.18712]
[1725372289348,0.04945938,58249.0,58237.0,2.18712]
[1725372289535,0.04945938,58254.0,58248.0,0.3504]
[1725372289736,0.41025938,58255.0,58253.0,0.0004]
[1725372289942,0.59580397,58267.0,58248.0,0.3504]
[1725372289943,0.41025938,58260.0,58249.0,0.35]
[1725372290145,0.3608,58252.0,58248.0,0.0004]
[1725372290344,0.085842,58249.0,58248.0,0.0004]
[1725372290739,0.085842,58249.0,58248.0,0.00036]
[1725372290943,0.1352825,58249.0,58248.0,0.00036]
[1725372291159,0.085842,58249.0,58248.0,0.00036]
[1725372291551,0.0494405,58251.0,58248.0,0.00036]
[1725372291746,0.3608,58252.0,58248.0,0.00036]
[1725372291747,0.3608,58252.0,58249.0,0.35]
[1725372292142,0.0494405,58257.0,58249.0,0.35]
[1725372292338,0.085835,58254.0,58249.0,0.35]
[1725372292543,0.085835,58254.0,58245.0,0.7108]
[1725372292838,0.0004,58246.0,58245.0,0.35]
[1725372294045,0.0004,58246.0,58244.0,0.00025747]
[1725372294352,0.086248,58245.0,58244.0,0.00025747]
[1725372294737,0.0004,58245.0,58244.0,0.00025747]
[1725372295151,0.0004,58245.0,58244.0,0.00017045]
[1725372295452,0.02823442,58245.0,58244.0,0.00017045]
[1725372295953,0.11408242,58245.0,58244.0,0.00017045]
[1725372297143,0.12733839,58245.0,58244.0,0.00017045]
[1725372297553,0.02823442,58245.0,58244.0,0.00017045]
[1725372297943,0.09935289,58245.0,58244.0,0.00017045]
[1725372298148,0.02823442,58245.0,58244.0,0.00017045]
[1725372298356,0.02823442,58245.0,58244.0,0.30017045]
[1725372298843,0.02823442,58245.0,58244.0,0.38602045]
[1725372299841,0.02823442,58245.0,58244.0,1.50110045]
[1725372300243,0.08249149,58245.0,58244.0,1.50110045]
[1725372300551,0.00012627,58250.0,58249.0,0.085842]
[1725372300754,0.08263009,58250.0,58249.0,0.3004]
[1725372301053,0.02795668,58250.0,58249.0,0.3004]
[1725372301444,0.11379768,58250.0,58249.0,0.0004]
[1725372301746,0.11379768,58250.0,58249.0,0.00019745]
[1725372301747,0.54107237,58250.0,58249.0,0.00019745]
[1725372301951,1.14184651,58250.0,58249.0,3.2e-07]
[1725372302257,0.085871,58230.0,58227.0,0.004]
[1725372302444,1.0830739,58250.0,58218.0,0.085888]
[1725372302445,0.061031,58229.0,58226.0,0.3]
[1725372302640,0.085875,58227.0,58226.0,0.3]
[1725372302847,0.11371398,58227.0,58226.0,0.3]
[1725372303043,0.02783898,58227.0,58226.0,0.3]
[1725372303339,0.085872,58229.0,58226.0,0.3]
[1725372303547,0.06599659,58227.0,58226.0,0.3]
[1725372303849,0.08275066,58232.0,58226.0,0.3]
[1725372303850,0.06599659,58229.0,58226.0,0.3]
[1725372304053,0.06639659,58227.0,58221.0,0.00025747]
[1725372304244,0.0004,58227.0,58226.0,0.3608]
[1725372304449,0.0004,58227.0,58226.0,0.3]
[1725372304655,0.08249319,58231.0,58226.0,0.3]
[1725372304852,0.085869,58231.0,58230.0,0.3]
[1725372305454,0.08275066,58232.0,58230.0,0.3]
[1725372305647,0.06601711,58236.0,58231.0,0.961869]
[1725372305951,0.08249319,58241.0,58235.0,0.3]
[1725372305952,0.04952273,58241.0,58235.0,0.3]
[1725372306248,0.3,58257.0,58233.0,0.3608]
[1725372306249,0.02352273,58245.0,58240.0,0.6608]
[1725372306456,0.06601711,58249.0,58244.0,0.3]
[1725372306651,0.06601711,58250.0,58248.0,0.3608]
[1725372306853,0.06601711,58249.0,58248.0,0.3608]
[1725372307057,0.46833219,58251.0,58246.0,0.3608]
[1725372307248,0.0004,58247.0,58243.0,0.3608]
[1725372307554,0.0004,58247.0,58241.0,0.00025747]
[1725372307555,0.0004,58244.0,58241.0,0.00025747]
[1725372307757,0.0004,58244.0,58243.0,0.6608]
[1725372308252,0.0004,58244.0,58241.0,0.00025747]
[1725372308454,0.0004,58242.0,58241.0,0.00025747]
[1725372308757,0.06641232,58242.0,58241.0,0.00025747]
[1725372308956,0.0004,58242.0,58241.0,0.00025747]
[1725372309454,0.0004,58242.0,58241.0,1.55119147]
[1725372310646,0.0004,58242.0,58241.0,0.95119147]
[1725372310852,0.0004,58242.0,58241.0,1.55119147]
[1725372311659,0.0004,58242.0,58241.0,0.00025747]
[1725372311954,0.086252,58242.0,58241.0,0.00025747]
[1725372312352,0.772104,58242.0,58241.0,0.00025747]
[1725372312545,0.772104,58242.0,58226.0,0.35]
[1725372312546,0.085869,58232.0,58226.0,0.3608]
[1725372312846,0.0004,58227.0,58226.0,0.3608]
[1725372313049,0.0004,58227.0,58226.0,0.446676]
[1725372313960,0.0004,58227.0,58221.0,0.00025747]
[1725372314259,0.0004,58222.0,58221.0,0.00025747]
[1725372314654,0.0004,58222.0,58221.0,0.00899098]
[1725372314855,0.0004,58222.0,58221.0,1.21015398]
[1725372315162,0.0004,58222.0,58221.0,0.00025747]
[1725372316670,0.086282,58222.0,58221.0,0.00025747]
[1725372317750,0.687444,58222.0,58221.0,0.00025747]
[1725372317950,0.085889,58217.0,58216.0,0.002]
[1725372318258,0.0004,58217.0,58216.0,0.002]
[1725372318962,0.086289,58217.0,58216.0,0.002]
[1725372319159,0.086289,58217.0,58216.0,0.00180001]
[1725372320263,0.0004,58217.0,58211.0,0.00025747]
[1725372320464,0.06592721,58214.0,58211.0,0.00025747]
[1725372320764,0.171794,58212.0,58211.0,0.00025747]
[1725372321270,0.085899,58211.0,58188.0,0.724]
[1725372321453,0.085919,58197.0,58194.0,0.3608]
[1725372321654,0.42668408,58203.0,58194.0,0.3608]
[1725372322053,0.42668408,58203.0,58193.0,0.085923]
[1725372322054,0.085917,58199.0,58193.0,0.085923]
[1725372322256,0.06588408,58202.0,58197.0,0.35]
[1725372322257,0.00025772,58202.0,58197.0,0.35]
[1725372322563,0.00025772,58202.0,58201.0,0.435913]
[1725372322759,0.00025772,58202.0,58201.0,0.44470513]
[1725372322960,0.00025772,58202.0,58201.0,0.35879213]
[1725372323461,0.00025772,58202.0,58201.0,1.56014513]
[1725372323651,0.00025772,58202.0,58201.0,0.86544]
[1725372323850,0.00025772,58202.0,58201.0,1.46544]
[1725372324052,0.00025772,58202.0,58201.0,1.551353]
[1725372324258,0.00025772,58202.0,58201.0,0.951353]
[1725372324659,0.06588408,58215.0,58207.0,0.085903]
[1725372324858,0.0004,58217.0,58213.0,0.35]
[1725372325262,0.0004,58217.0,58202.0,0.4948]
[1725372325263,0.0004,58217.0,58208.0,0.35]
[1725372325469,0.0004,58217.0,58209.0,0.3608]
[1725372326061,0.085895,58214.0,58209.0,0.3608]
[1725372326462,0.0004,58217.0,58208.0,0.3608]
[1725372326663,0.085891,58216.0,58207.0,0.00025772]
[1725372327375,0.3608,58215.0,58207.0,0.00025772]
[1725372327559,0.171806,58208.0,58207.0,0.00025772]
[1725372327761,0.521806,58208.0,58207.0,0.00025772]
[1725372327975,1.638006,58208.0,58207.0,0.00025772]
[1725372328574,0.086703,58208.0,58207.0,0.00025772]
[1725372330575,0.386703,58208.0,58207.0,0.00025772]
[1725372330878,0.386703,58208.0,58189.0,0.00851111]
[1725372330879,1.592104,58208.0,58189.0,0.00851111]
[1725372331080,1.592104,58208.0,58180.0,0.3608]
[1725372331081,0.085922,58196.0,58191.0,0.085927]
[1725372331267,0.3608,58202.0,58191.0,0.085927]
[1725372331467,0.3608,58202.0,58190.0,0.3]
[1725372331468,0.3608,58194.0,58190.0,0.3]
[1725372331666,0.3608,58194.0,58185.0,0.085936]
[1725372331667,0.085931,58189.0,58185.0,0.085936]
[1725372331879,0.085934,58187.0,58186.0,0.00025772]
[1725372332077,0.086728,58191.0,58186.0,0.00025772]
[1725372332369,0.085933,58188.0,58186.0,0.00025772]
[1725372332571,0.0008,58191.0,58186.0,0.00025772]
[1725372332572,0.085934,58187.0,58186.0,0.00025772]
[1725372332778,0.0008,58191.0,58186.0,0.00025772]
[1725372333078,0.085929,58190.0,58186.0,0.00025772]
[1725372333280,0.446734,58187.0,58186.0,0.00025772]
[1725372333483,0.532668,58187.0,58186.0,0.00025772]
[1725372333977,0.446734,58187.0,58186.0,0.00025772]
[1725372334176,0.532668,58187.0,58186.0,0.00025772]
[1725372334484,1.5864,58187.0,58166.0,0.004]
[1725372334672,1.5864,58187.0,58160.0,0.3]
[1725372334673,0.0008,58167.0,58165.0,0.085966]
[1725372334976,0.0008,58167.0,58166.0,0.385965]
[1725372335183,0.0008,58167.0,58166.0,1.262525]
[1725372335477,0.0008,58167.0,58166.0,1.501725]
[1725372335978,0.0008,58167.0,58166.0,1.862525]
[1725372336568,0.0008,58167.0,58166.0,1.562525]
[1725372336775,0.0008,58167.0,58166.0,1.862525]
[1725372337271,0.3608,58197.0,58180.0,0.085943]
[1725372337468,0.3,58192.0,58178.0,0.3]
[1725372337673,0.385933,58188.0,58178.0,0.3]
[1725372338175,0.3,58192.0,58182.0,0.3]
[1725372338472,0.36105772,58193.0,58186.0,0.3]
[1725372338674,0.385929,58190.0,58183.0,0.3608]
[1725372338873,0.36105772,58193.0,58181.0,0.00025772]
[1725372338874,0.3,58186.0,58181.0,0.00025772]
[1725372339181,0.3608,58188.0,58181.0,0.00025772]
[1725372339182,0.085941,58182.0,58181.0,0.00025772]
[1725372339384,0.3,58185.0,58181.0,0.00025772]
[1725372339678,0.00025772,58193.0,58181.0,0.00025772]
[1725372339679,0.3,58189.0,58181.0,0.00025772]
[1725372339873,0.3,58185.0,58181.0,0.00025772]
[1725372340382,0.446733,58188.0,58181.0,0.00025772]
[1725372340570,0.085933,58188.0,58181.0,0.00025772]
[1725372341088,0.36105772,58193.0,58184.0,0.3]
[1725372341271,0.00025772,58193.0,58192.0,0.3]
[1725372341473,0.00025772,58193.0,58192.0,0.6608]
[1725372341677,0.00025772,58193.0,58189.0,0.4788]
[1725372341871,0.00025772,58193.0,58190.0,0.51556]
[1725372342174,0.00025772,58193.0,58189.0,0.4788]
[1725372342368,0.00025772,58193.0,58190.0,0.51556]
[1725372342580,0.00025772,58193.0,58192.0,0.385926]
[1725372342887,0.00025772,58193.0,58192.0,0.985926]
[1725372343083,0.00025772,58193.0,58192.0,1.501446]
[1725372343977,0.00025772,58193.0,58192.0,0.51552]
[1725372344179,0.30025772,58193.0,58184.0,0.3618]
[1725372344374,0.00025772,58193.0,58192.0,0.385926]
[1725372344685,0.00025772,58193.0,58188.0,0.3]
[1725372344686,0.36105772,58193.0,58188.0,0.3]
[1725372344977,0.36105772,58193.0,58183.0,0.02749667]
[1725372344978,0.0004,58189.0,58183.0,0.02749667]
[1725372345182,0.0004,58189.0,58184.0,0.3]
[1725372345489,0.0004,58189.0,58181.0,0.00025772]
[1725372345490,0.3608,58188.0,58181.0,0.00025772]
[1725372345677,0.446733,58188.0,58181.0,0.00025772]
[1725372345987,0.0004,58182.0,58181.0,0.08620072]
[1725372346375,0.0004,58182.0,58181.0,1.20184072]
[1725372346577,0.0004,58182.0,58181.0,1.41589772]
[1725372346874,0.0004,58182.0,58181.0,0.51589772]
[1725372347384,0.0004,58182.0,58181.0,1.47669772]
[1725372347570,0.0004,58182.0,58181.0,1.17669772]
[1725372347773,0.0004,58182.0,58181.0,0.81589772]
[1725372347980,0.0004,58182.0,58181.0,0.51589772]
[1725372348178,0.0004,58182.0,58181.0,1.47669772]
[1725372348378,0.0004,58182.0,58181.0,0.51589772]
[1725372348778,0.086341,58182.0,58181.0,0.00025772]
[1725372350483,0.0004,58182.0,58181.0,0.00025772]
[1725372351985,0.0004,58182.0,58181.0,0.51589772]
[1725372352485,0.0004,58182.0,58181.0,0.00025772]
[1725372352984,0.386341,58182.0,58181.0,0.00025772]
[1725372353385,0.086341,58182.0,58181.0,0.00025772]
[1725372355078,0.0004,58182.0,58181.0,0.30025772]
[1725372355277,0.0004,58182.0,58181.0,1.50184072]
[1725372355479,0.00025772,58193.0,58181.0,1.77669772]
[1725372355690,0.08618372,58193.0,58192.0,0.0004]
[1725372356189,0.08618372,58193.0,58181.0,0.36105772]
[1725372356190,0.085941,58182.0,58181.0,0.00025772]
[1725372356380,0.746741,58182.0,58181.0,0.00025772]
[1725372356691,0.085955,58173.0,58166.0,0.3608]
[1725372356887,0.085955,58173.0,58171.0,0.0012]
[1725372357078,0.085943,58181.0,58171.0,0.0012]
[1725372357280,1.13202,58182.0,58171.0,0.0012]
[1725372357486,1.13202,58182.0,58171.0,0.00145772]
[1725372357487,1.21669972,58182.0,58171.0,0.00145772]
[1725372357686,0.085943,58181.0,58171.0,0.00145772]
[1725372357887,0.3608,58177.0,58171.0,0.00145772]
[1725372358488,0.085956,58172.0,58171.0,0.00145772]
[1725372358889,0.446749,58177.0,58164.0,0.11328679]
[1725372359195,0.085961,58169.0,58167.0,0.3]
[1725372359389,0.085962,58168.0,58167.0,0.3]
[1725372359691,0.3608,58168.0,58167.0,0.3]
[1725372360593,0.3608,58168.0,58164.0,0.02731979]
[1725372360790,0.086766,58165.0,58163.0,0.3]
[1725372361096,0.086766,58165.0,58162.0,0.00025772]
[1725372361097,0.0008,58164.0,58162.0,0.00025772]
[1725372361298,0.085968,58164.0,58162.0,0.00025772]
[1725372361595,0.085969,58163.0,58162.0,0.00025772]
[1725372361790,0.085969,58163.0,58162.0,0.30025772]
[1725372361995,0.085969,58163.0,58162.0,0.00025772]
[1725372362289,0.085969,58163.0,58148.0,0.15405297]
[1725372362290,1.4766,58163.0,58148.0,0.05104722]
[1725372362498,0.08679,58149.0,58143.0,0.00852566]
[1725372362684,0.08679,58149.0,58137.0,0.3648]
[1725372362685,0.0008,58144.0,58141.0,0.086001]
[1725372362893,0.0008,58142.0,58141.0,0.09458452]
[1725372363084,0.0008,58144.0,58141.0,0.90858352]
[1725372363290,0.0008,58144.0,58141.0,0.30858352]
[1725372364195,0.3608,58142.0,58141.0,0.00858352]
[1725372364397,0.3608,58142.0,58137.0,0.00013334]
[1725372364699,0.0008,58138.0,58137.0,0.00857322]
[1725372364901,0.0008,58138.0,58137.0,0.30857322]
[1725372365293,0.0008,58138.0,58137.0,1.51058122]
[1725372365895,0.0008,58138.0,58137.0,1.12457322]
[1725372366216,0.0008,58144.0,58137.0,1.51058122]
[1725372366501,0.0008,58165.0,58163.0,0.085969]
[1725372366702,0.0008,58165.0,58164.0,0.3004]
[1725372366999,0.447566,58165.0,58164.0,0.0004]
[1725372367693,0.446766,58165.0,58164.0,0.0004]
[1725372367903,1.562526,58165.0,58164.0,0.0004]
[1725372368089,0.446766,58165.0,58164.0,0.0004]
[1725372368598,1.648492,58165.0,58164.0,0.0004]
[1725372368905,1.768492,58165.0,58164.0,0.0004]